bitfinex-derivatives/quotes_SOLF0:USTF0_20240920
["timestamp","ask_amount","ask_price","bid_price","bid_amount"]
[1726812855830,16.2,148.16,148.08,2.8313]
[1726812856734,16.2,148.16,148.08,6.2076]
[1726812857128,16.2,148.16,148.08,2.8313]
[1726812857331,3.3752,148.13,148.09,3.376]
[1726812859131,3.3751,148.14,148.09,3.376]
[1726812862229,16.2,148.18,148.09,16.2]
[1726812862833,3.3749,148.15,148.1,3.3757]
[1726812863329,3.375,148.14,148.1,3.3757]
[1726812864240,16.2,148.18,148.08,2.8313]
[1726812864644,16.2,148.16,148.08,2.8313]
[1726812865238,3.3752,148.14,148.08,2.8313]
[1726812865834,3.3752,148.14,148.1,3.3757]
[1726812866340,3.3748,148.15,148.08,19.0313]
[1726812866542,16.2,148.18,148.08,19.0313]
[1726812866939,3.3747,148.16,148.08,19.0313]
[1726812867138,3.3747,148.16,148.12,3.3753]
[1726812870047,13.7547,148.16,148.12,3.3753]
[1726812870449,10.38,148.16,148.12,3.3753]
[1726812870748,10.38,148.16,148.08,2.8313]
[1726812870749,10.38,148.18,148.13,13.7551]
[1726812870938,141.8023,148.31,148.16,10.38]
[1726812871142,10.38,148.22,148.16,10.38]
[1726812871342,10.38,148.22,148.17,10.38]
[1726812871343,3.3732,148.22,148.17,10.38]
[1726812871546,10.38,148.24,148.18,10.38]
[1726812872048,3.373,148.23,148.18,10.38]
[1726812872243,10.38,148.25,148.2,10.38]
[1726812872546,10.38,148.25,148.19,3.3736]
[1726812872745,3.32039461,148.29,148.16,4.1028]
[1726812872746,10.38,148.23,148.17,10.38]
[1726812872944,10.38,148.19,148.16,2.736]
[1726812873144,13.754,148.19,148.16,2.736]
[1726812873945,16.21,148.2,148.16,2.736]
[1726812875239,16.21,148.2,148.12,3.3753]
[1726812876347,3.3745,148.17,148.12,3.3753]
[1726812877642,3.3745,148.17,148.09,2.7268]
[1726812877643,16.21,148.18,148.09,2.7268]
[1726812878151,3.3744,148.17,148.13,3.3751]
[1726812878342,16.21,148.18,148.09,2.7268]
[1726812878744,3.3747,148.15,148.1,3.3757]
[1726812878948,3.3747,148.15,148.09,2.7268]
[1726812879454,16.21,148.18,148.09,2.7268]
[1726812880254,3.3747,148.16,148.11,3.3756]
[1726812880463,16.21,148.18,148.09,2.7268]
[1726812880656,3.375,148.14,148.1,3.3758]
[1726812881251,3.375,148.14,148.09,6.1028]
[1726812884660,3.375,148.14,148.1,3.3757]
[1726812891765,3.375,148.14,148.09,6.1028]
[1726812892376,3.375,148.14,148.1,3.3759]
[1726812893966,13.755,148.14,148.1,3.3759]
[1726812896274,6.7423,148.31,148.13,10.38]
[1726812896480,10.38,148.22,148.17,10.38]
[1726812897079,3.3735,148.21,148.17,10.38]
[1726812897480,3.3735,148.21,148.17,13.7543]
[1726812897684,10.38,148.22,148.17,13.7543]
[1726812898379,3.3734,148.21,148.17,10.38]
[1726812899875,3.3734,148.21,148.17,3.3743]
[1726812900177,3.3734,148.21,148.15,16.2]
[1726812900377,16.2,148.21,148.11,4.56700298]
[1726812900578,16.2,148.21,148.12,6.30653386]
[1726812900779,16.2,148.21,148.1,151.24]
[1726812900986,16.2,148.21,148.1,135.04]
[1726812901379,3.3744,148.17,148.12,3.3752]
[1726812901778,3.3744,148.17,148.1,151.24]
[1726812901979,3.3744,148.17,148.11,6.30744391]
[1726812902275,3.3744,148.17,148.12,6.30744391]
[1726812902479,3.3744,148.17,148.1,151.24]
[1726812902680,3.3744,148.17,148.11,6.30747123]
[1726812902990,3.3744,148.17,148.13,3.3752]
[1726812903280,16.2,148.21,148.13,3.3752]
[1726812903478,3.3741,148.18,148.13,3.3752]
[1726812903787,3.3741,148.18,148.14,3.3749]
[1726812904084,16.2,148.23,148.14,19.63270416]
[1726812904483,3.3737,148.2,148.14,19.63270416]
[1726812904686,3.3737,148.2,148.14,16.2]
[1726812904884,16.2,148.23,148.14,19.60637146]
[1726812905083,3.3737,148.2,148.16,3.3743]
[1726812906184,16.2,148.21,148.1,151.24]
[1726812906392,16.2,148.17,148.11,6.30747366]
[1726812906595,3.3747,148.16,148.13,3.3752]
[1726812907587,3.3747,148.16,148.12,3.3753]
[1726812907988,19.5743,148.17,148.12,3.3753]
[1726812908192,3.3743,148.17,148.13,3.3752]
[1726812908585,3.3742,148.18,148.1,135.04]
[1726812909293,3.3746,148.16,148.1,135.04]
[1726812909494,3.3746,148.16,148.09,18.9268]
[1726812909795,3.3746,148.16,148.1,6.30797232]
[1726812909995,3.3746,148.16,148.09,18.9268]
[1726812910291,3.3744,148.17,148.1,6.30797232]
[1726812910492,3.3744,148.17,148.11,6.30797232]
[1726812910695,3.3744,148.17,148.09,18.9268]
[1726812910887,3.3744,148.17,148.11,16.2]
[1726812911186,16.2,148.21,148.14,3.3749]
[1726812912084,16.2,148.21,148.11,16.2]
[1726812912288,16.2,148.21,148.12,6.30771244]
[1726812912490,3.3744,148.17,148.11,16.2]
[1726812912887,3.3744,148.17,148.13,3.3752]
[1726812915499,3.374,148.19,148.11,16.2]
[1726812915698,3.374,148.19,148.12,6.30764421]
[1726812915899,3.374,148.19,148.11,16.2]
[1726812915900,3.374,148.19,148.13,3.3988362]
[1726812916095,3.374,148.19,148.11,16.2]
[1726812916293,3.3741,148.18,148.12,6.30763007]
[1726812916493,3.3741,148.18,148.13,3.39984906]
[1726812916692,3.3741,148.18,148.11,16.2]
[1726812916899,3.3739,148.19,148.12,6.30762921]
[1726812917100,3.3739,148.19,148.13,3.42010636]
[1726812917400,3.3739,148.19,148.11,16.2]
[1726812917602,3.3739,148.19,148.12,6.30759916]
[1726812917801,3.3739,148.19,148.13,9.62371808]
[1726812918001,3.3739,148.19,148.11,16.2]
[1726812918297,16.2,148.23,148.14,16.2]
[1726812918298,3.3737,148.2,148.14,16.2]
[1726812918502,3.3737,148.2,148.14,19.65485669]
[1726812919004,3.3739,148.19,148.15,1.3027]
[1726812919891,3.3739,148.19,148.15,4.6773]
[1726812922004,16.2,148.16,148.05,19.64796597]
[1726812922197,16.2,148.13,148.06,14.86654894]
[1726812922498,3.376,148.1,148.07,6.30843153]
[1726812922702,16.2,148.13,148.08,6.30843153]
[1726812922898,16.2,148.13,148.06,7.41859662]
[1726812923098,3.3759,148.1,148.07,6.30914598]
[1726812923295,3.3759,148.1,148.06,7.41859662]
[1726812923803,3.3757,148.11,148.06,7.41859662]
[1726812924394,3.3757,148.11,148.06,10.79539662]
[1726812925293,16.2,148.11,147.93,3.38319713]
[1726812925490,16.2,148.11,148.01,31.20456205]
[1726812925699,16.2,148.11,148.02,10.87966205]
[1726812925903,16.2,148.11,148.03,6.30991115]
[1726812926104,16.2,148.11,148.04,6.30991115]
[1726812926299,3.3763,148.09,148.05,6.30991115]
[1726812926494,3.3763,148.09,148.03,16.2]
[1726812926695,3.3763,148.09,148.04,6.30994769]
[1726812926898,3.3763,148.09,148.05,6.30994769]
[1726812927099,3.3763,148.09,148.03,16.2]
[1726812927298,3.3763,148.09,148.04,6.31002761]
[1726812927299,3.377,148.05,148.04,6.31002761]
[1726812927498,3.377,148.05,148.01,2.741]
[1726812927703,3.377,148.05,148.02,6.31072367]
[1726812927903,3.3513503,148.08,148.01,2.741]
[1726812927904,3.3772,148.04,148.01,2.741]
[1726812928305,3.3772,148.04,148.02,6.31074709]
[1726812928503,3.3767,148.07,148.03,6.31074709]
[1726812928705,3.3767,148.07,148.01,2.741]
[1726812929101,16.2,148.11,148.02,12.62041178]
[1726812929405,16.2,148.11,148.03,6.31020599]
[1726812929601,19.5432488,148.11,148.02,22.51020579]
[1726812929801,19.5432488,148.11,148.03,6.31014732]
[1726812930006,19.5432488,148.11,148.02,16.2]
[1726812930202,19.5432488,148.11,148.03,6.31012492]
[1726812930498,16.2,148.11,148.04,6.30982708]
[1726812930704,16.2,148.11,148.01,4.1389]
[1726812930898,19.49594664,148.11,148.03,3.3774]
[1726812931400,16.2,148.08,148.01,2.741]
[1726812931799,16.2,148.08,148.02,3.3777]
[1726812931999,16.2,148.08,148.01,2.741]
[1726812932305,16.2,148.1,148.01,2.741]
[1726812932708,16.2,148.1,148.02,16.2]
[1726812933109,19.64843198,148.1,148.02,16.2]
[1726812933604,19.64843198,148.1,148.01,2.741]
[1726812933907,19.64843198,148.1,148.04,3.3771]
[1726812934111,19.64843198,148.1,148.01,2.741]
[1726812934703,16.2,148.08,147.97,4.57026887]
[1726812934904,16.2,148.08,147.98,6.31066344]
[1726812935107,16.2,148.08,147.99,6.31066344]
[1726812935307,3.377,148.06,148.01,3.3778]
[1726812938607,3.3766,148.07,148.02,3.3776]
[1726812938908,3.3766,148.07,147.97,2.6771]
[1726812938909,6.7466,148.22,148.03,16.2]
[1726812939110,16.2,148.14,148.03,16.2]
[1726812939311,3.3757,148.11,148.06,3.3767]
[1726812939616,3.32894525,148.12,148.04,6.0897781]
[1726812939914,16.2,148.14,148.04,2.6473]
[1726812940713,16.2,148.12,148.04,2.6473]
[1726812940912,3.29684519,148.11,148.04,2.6473]
[1726812941609,16.2,148.1,148.02,1.4325]
[1726812941807,16.2,148.1,147.99,4.56969176]
[1726812941808,16.2,148.1,148.03,3.3774]
[1726812942117,3.349665,148.09,148.0,9.06561491]
[1726812942303,3.3769,148.06,148.01,3.3778]
[1726812942914,3.3769,148.06,148.02,3.3777]
[1726812943113,3.3766,148.07,148.02,3.3777]
[1726812943910,16.2,148.1,148.01,16.2]
[1726812944116,16.2,148.12,148.03,16.2]
[1726812944414,19.57376719,148.12,148.03,16.2]
[1726812944606,19.57376719,148.12,148.05,3.3769]
[1726812944812,19.57376719,148.12,148.03,16.2]
[1726812945515,3.37376719,148.12,148.01,16.2]
[1726812945717,3.3765,148.08,148.03,3.3773]
[1726812946316,3.3767,148.07,148.03,3.3773]
[1726812947019,3.3767,148.07,148.04,3.3772]
[1726812947317,3.3764,148.08,148.04,3.3772]
[1726812948217,3.377,148.06,148.01,16.2]
[1726812948622,19.54459687,148.1,148.01,16.2]
[1726812949917,3.3767,148.07,148.03,3.3775]
[1726812950818,3.3768,148.06,148.03,3.3775]
[1726812951120,16.2,148.04,147.91,16.2]
[1726812951418,16.2,148.02,147.92,9.16860736]
[1726812951619,3.3781,148.01,147.95,3.3791]
[1726812951816,16.2,148.02,147.95,3.3791]
[1726812952015,16.2,148.02,147.93,16.2]
[1726812952209,16.2,148.02,147.95,3.3791]
[1726812953015,16.2,147.98,147.92,1.4263]
[1726812953222,16.2,147.96,147.91,1.3464]
[1726812953418,16.2,147.96,147.87,3.41713976]
[1726812953614,16.2,147.96,147.87,4.79193976]
[1726812953814,3.3795,147.94,147.89,3.3806]
[1726812954220,16.2,147.96,147.89,3.3806]
[1726812954420,3.3796,147.94,147.89,3.3806]
[1726812954621,16.2,147.96,147.89,3.3806]
[1726812955017,3.3794,147.95,147.9,3.3804]
[1726812955218,16.2,147.96,147.87,1.3748]
[1726812955415,16.2,147.96,147.88,3.3809]
[1726812955617,19.49873677,147.96,147.88,3.3809]
[1726812956219,16.2,147.96,147.87,1.3748]
[1726812956420,16.2,147.96,147.87,17.5748]
[1726812956627,19.52375794,147.97,147.87,17.5748]
[1726812956913,3.3792,147.96,147.9,3.3803]
[1726812957320,3.3793,147.95,147.9,3.3803]
[1726812957924,3.3797,147.94,147.87,1.3748]
[1726812958226,3.3797,147.94,147.87,17.5748]
[1726812958425,3.3797,147.94,147.88,3.3809]
[1726812958723,3.3798,147.93,147.88,3.3809]
[1726812959320,16.2,147.95,147.87,17.5748]
[1726812959321,3.3796,147.94,147.89,3.3806]
[1726812959519,16.2,147.97,147.87,17.5748]
[1726812959929,3.3795,147.94,147.87,17.5748]
[1726812960523,3.3795,147.94,147.9,3.3804]
[1726812961226,3.3795,147.94,147.89,3.3806]
[1726812961428,3.35114598,147.98,147.89,16.2]
[1726812961822,3.35114598,147.98,147.91,3.3802]
[1726812962225,16.2,147.99,147.9,16.2]
[1726812962527,3.42238346,148.01,147.92,16.2]
[1726812962725,3.3788,147.98,147.93,3.3797]
[1726812962927,16.2,148.01,147.92,17.5669]
[1726812963525,16.2,148.01,147.94,3.3794]
[1726812963726,16.2,148.02,147.94,16.2]
[1726812964031,3.3781,148.01,147.94,16.2]
[1726812964327,3.41142663,148.03,147.92,1.3669]
[1726812964534,16.2,148.0,147.92,1.3669]
[1726812964726,3.33400946,147.99,147.92,1.3669]
[1726812964925,16.2,148.0,147.92,1.3669]
[1726812965121,3.3787,147.98,147.93,3.3797]
[1726812965525,3.3786,147.98,147.94,3.3794]
[1726812965732,16.2,148.0,147.92,1.3669]
[1726812966328,3.3782,148.0,147.92,1.3669]
[1726812966827,3.3782,148.0,147.95,3.3791]
[1726812967028,19.5536173,148.02,147.92,1.3669]
[1726812967423,16.2,147.99,147.92,1.3669]
[1726812967733,16.2,147.99,147.88,16.2]
[1726812967930,16.2,147.97,147.87,20.2744]
[1726812968130,16.2,148.01,147.91,16.2]
[1726812968534,16.2,148.03,147.96,3.379]
[1726812968728,19.65729166,148.03,147.96,3.379]
[1726812969128,19.65729166,148.03,147.94,2.6885]
[1726812969129,16.2,148.03,147.94,2.6885]
[1726812969844,19.61537281,148.03,147.94,2.6885]
[1726812970836,3.3782,148.0,147.96,3.379]
[1726812971130,16.2,148.01,147.87,1.4114]
[1726812971330,16.2,147.97,147.91,3.3802]
[1726812971934,3.3795,147.95,147.9,3.3803]
[1726812972130,25.99,147.98,147.88,5.98268559]
[1726812972533,3.3797,147.94,147.9,3.3804]
[1726812973130,3.3797,147.94,147.89,3.3806]
[1726812973935,3.3804,147.91,147.88,2.6747]
[1726812974131,3.31102789,147.97,147.88,2.6747]
[1726812974637,3.3799,147.93,147.88,6.0554]
[1726812974832,3.3799,147.93,147.88,2.6747]
[1726812975032,3.31102789,147.97,147.88,2.6747]
[1726812975837,3.3796,147.94,147.9,3.3803]
[1726812976431,3.3794,147.95,147.88,2.6747]
[1726812977232,3.3796,147.94,147.9,3.3803]
[1726812977435,29.41204937,147.98,147.88,2.6747]
[1726812977631,3.3798,147.93,147.89,3.3806]
[1726812978332,3.3798,147.93,147.88,6.0555]
[1726812978535,3.38,147.92,147.88,6.0555]
[1726812978837,25.99,147.96,147.86,138.6012]
[1726812979131,3.42204937,147.98,147.86,138.6012]
[1726812979132,3.3804,147.91,147.86,138.6012]
[1726812979332,25.99,147.94,147.86,135.22]
[1726812979545,25.99,147.91,147.86,135.22]
[1726812979937,25.99,147.91,147.84,1.3294]
[1726812980131,25.99,147.91,147.82,3.4243058]
[1726812980438,25.99,147.91,147.79,25.99]
[1726812980439,3.33570645,147.9,147.8,1.3294]
[1726812980741,3.33570645,147.9,147.81,3.36513915]
[1726812981128,25.99,147.91,147.81,3.36513915]
[1726812981433,25.99,147.96,147.84,25.99]
[1726812981741,3.3798,147.93,147.88,3.3808]
[1726812982439,3.3798,147.93,147.87,3.3811]
[1726812982634,25.99,147.93,147.73,3.31576034]
[1726812982842,25.99,147.93,147.82,25.99]
[1726812983036,25.99,147.96,147.83,1.3966]
[1726812983237,3.3805,147.9,147.84,3.3818]
[1726812983434,3.44870097,147.94,147.84,3.3818]
[1726812983735,27.0051,148.03,147.89,3.3805]
[1726812983736,25.99,147.98,147.89,3.3805]
[1726812983935,3.31011409,147.97,147.88,1.4006]
[1726812984136,3.31011409,147.97,147.88,2.8249]
[1726812984940,3.3799,147.93,147.88,6.2058]
[1726812985140,25.99,147.98,147.89,1.3255]
[1726812986434,3.3799,147.93,147.89,1.3255]
[1726812986636,25.99,147.98,147.89,1.3255]
[1726812988344,3.3799,147.93,147.89,4.7061]
[1726812988844,25.99,147.98,147.89,4.7061]
[1726812989341,3.3799,147.93,147.89,4.7061]
[1726812989939,25.99,147.98,147.89,1.3255]
[1726812989940,3.3804,147.9,147.89,1.3255]
[1726812990735,3.3804,147.9,147.88,2.8249]
[1726812990736,3.3804,147.9,147.88,1.4006]
[1726812990946,3.3803,147.91,147.88,1.4006]
[1726812991341,29.3403582,147.95,147.83,27.3973]
[1726812991641,25.99,147.98,147.86,3.3812]
[1726812992041,3.3802,147.91,147.86,3.3812]
[1726812992345,3.43049898,147.95,147.86,3.3812]
[1726812992545,25.99,147.98,147.86,3.3812]
[1726812992747,25.99,147.95,147.84,2.7789]
[1726812992943,29.37045326,147.95,147.84,2.7789]
[1726812994144,29.37045326,147.95,147.84,6.1605]
[1726812994347,3.38045326,147.95,147.84,2.7789]
[1726812994548,3.38,147.92,147.88,3.3807]
[1726812995247,3.3802,147.91,147.88,3.3807]
[1726812995450,29.28996092,147.97,147.88,3.3807]
[1726812995750,29.28996092,147.97,147.85,25.99]
[1726812995751,29.28996092,147.97,147.87,3.3811]
[1726812996051,3.3803,147.91,147.87,3.3811]
[1726812996745,29.28996092,147.97,147.85,25.99]
[1726812996950,3.29996092,147.97,147.87,25.99]
[1726812997145,25.99,148.0,147.87,25.99]
[1726812997549,3.3796,147.93,147.87,25.99]
[1726812998447,3.3796,147.93,147.89,3.3802]
[1726812998643,3.3797,147.92,147.87,25.99]
[1726812998853,3.3797,147.92,147.88,3.3804]
[1726812999045,25.99,148.0,147.87,25.99]
[1726812999250,3.3794,147.94,147.87,25.99]
[1726812999546,3.3794,147.94,147.89,3.3802]
[1726812999952,3.3794,147.94,147.89,19.6202]
[1726813000354,3.44430298,148.05,147.93,16.24]
[1726813000551,16.24,148.04,147.95,16.24]
[1726813001658,3.3785,147.97,147.95,16.24]
[1726813002154,3.3785,147.97,147.94,3.3792]
[1726813003959,7.3385,148.04,147.93,2.6099]
[1726813004461,3.3788,147.96,147.93,5.9893]
[1726813005969,3.3788,147.96,147.93,2.6099]
[1726813006859,7.3385,148.04,147.93,5.9892]
[1726813007161,7.3385,148.04,147.93,2.6099]
[1726813007459,3.3788,147.96,147.93,2.6099]
[1726813008357,3.3788,147.96,147.93,5.9893]
[1726813009157,3.3788,147.96,147.93,2.6099]
[1726813009359,7.3385,148.04,147.93,2.6099]
[1726813009758,7.3385,148.04,147.93,5.9891]
[1726813010459,3.3787,147.97,147.93,5.9891]
[1726813010659,7.3385,148.04,147.93,2.6099]
[1726813010861,25.96,148.02,147.89,25.96]
[1726813011163,3.3793,147.94,147.9,6.835147]
[1726813011362,3.3177917,147.97,147.88,2.7582]
[1726813011564,25.96,147.99,147.88,2.7582]
[1726813011760,3.38,147.91,147.88,2.7582]
[1726813014465,25.96,147.99,147.88,2.7582]
[1726813014866,3.3794,147.94,147.9,3.38]
[1726813015167,25.96,148.01,147.89,25.96]
[1726813015760,25.96,148.01,147.91,3.3799]
[1726813016167,25.96,148.01,147.89,25.96]
[1726813016367,3.3796,147.93,147.89,29.3402]
[1726813016670,3.3796,147.93,147.89,25.96]
[1726813017367,3.3792,147.94,147.9,3.3799]
[1726813017872,3.37166144,147.98,147.9,3.3799]
[1726813018068,25.96,148.01,147.9,3.3799]
[1726813018768,3.3794,147.94,147.9,3.3799]
[1726813019569,3.3794,147.94,147.89,25.96]
[1726813020369,3.3794,147.93,147.9,3.38]
[1726813021270,3.3794,147.93,147.89,29.3402]
[1726813021962,3.3794,147.93,147.89,19.6202]
[1726813022363,3.34991159,147.98,147.89,16.24]
[1726813022561,16.24,147.94,147.88,2.7582]
[1726813023364,3.38,147.91,147.88,2.7582]
[1726813023765,16.24,147.96,147.88,2.7582]
[1726813023962,3.3796,147.93,147.88,6.1385]
[1726813024268,3.3796,147.93,147.88,2.7582]
[1726813024463,3.3796,147.93,147.89,16.24]
[1726813024768,3.45033793,147.99,147.91,16.24]
[1726813026368,6.7515,148.1,147.92,16.24]
[1726813026571,1.03024896,148.06,147.96,16.24]
[1726813026776,3.41663138,148.06,147.98,16.24]
[1726813026974,3.3771,148.04,147.98,16.24]
[1726813027172,19.57785106,148.1,147.98,16.24]
[1726813027465,3.3769,148.04,147.98,19.68739966]
[1726813027870,19.57785106,148.1,147.98,19.68739966]
[1726813028175,3.3771,148.04,147.99,3.378]
[1726813028377,19.57785106,148.1,147.98,19.68739966]
[1726813028976,3.3771,148.04,147.99,3.378]
[1726813029971,3.3771,148.04,148.0,16.24]
[1726813030675,3.3771,148.03,148.0,16.24]
[1726813030866,19.57785106,148.1,148.0,19.6177]
[1726813031279,3.3769,148.05,148.0,19.6177]
[1726813031875,3.3765,148.06,148.01,3.3775]
[1726813032068,3.33785106,148.1,147.98,4.73959966]
[1726813032275,6.7485,148.16,148.02,16.24]
[1726813032478,16.24,148.12,148.02,16.24]
[1726813032771,19.65723896,148.12,148.02,16.24]
[1726813032976,19.65723896,148.12,148.02,19.6173]
[1726813034672,3.3765,148.06,148.02,19.6173]
[1726813037579,19.65723896,148.12,148.02,16.24]
[1726813037872,13.47567105,148.21,148.0,16.24]
[1726813037873,16.24,148.14,148.06,16.24]
[1726813038078,16.24,148.16,148.06,16.24]
[1726813038272,16.24,148.16,148.06,19.6163]
[1726813038876,16.24,148.16,148.06,16.24]
[1726813039082,16.24,148.14,148.04,16.24]
[1726813039282,19.5364151,148.13,148.04,16.24]
[1726813039478,16.24,148.13,148.04,16.24]
[1726813039677,3.3761,148.08,148.04,19.6169]
[1726813040078,3.3761,148.08,148.04,16.24]
[1726813040381,16.24,148.14,148.06,16.24]
[1726813040976,3.3758,148.09,148.06,16.24]
[1726813041778,3.3756,148.1,148.06,19.6164]
[1726813042276,3.42803047,148.13,147.99,3.378]
[1726813042480,16.24,148.08,147.99,16.24]
[1726813042675,19.63729337,148.08,147.99,16.24]
[1726813043472,3.3772,148.03,147.99,19.6179]
[1726813044581,3.3774,148.02,147.99,19.6179]
[1726813044781,16.24,148.06,147.98,4.73959966]
[1726813044981,16.24,148.04,147.97,2.7297]
[1726813045381,16.24,148.04,147.97,18.9697]
[1726813045581,16.24,148.06,147.97,18.9697]
[1726813045783,3.39191439,148.05,147.97,18.9697]
[1726813046081,16.24,148.06,147.98,3.3783]
[1726813046483,16.24,148.08,147.99,16.24]
[1726813046679,16.24,148.1,148.0,16.24]
[1726813046878,19.5389806,148.1,148.0,16.24]
[1726813047978,16.24,148.08,147.98,17.6366]
[1726813049382,3.3771,148.04,148.0,3.3776]
[1726813050985,3.3771,148.04,148.0,19.6176]
[1726813051185,3.3772,148.03,147.99,3.378]
[1726813051385,3.3772,148.03,147.99,19.618]
[1726813052881,30.34937528,148.2,148.02,16.24]
[1726813053086,16.24,148.15,148.06,16.24]
[1726813053586,6.747,148.2,148.06,16.24]
[1726813053787,16.24,148.15,148.06,16.24]
[1726813054587,3.3757,148.1,148.06,19.6163]
[1726813055086,16.24,148.15,148.06,16.24]
[1726813055585,16.24,148.13,148.04,17.6292]
[1726813055786,3.3762,148.08,148.04,21.006]
[1726813056185,3.3762,148.08,148.05,3.3767]
[1726813056894,3.42567091,148.13,148.06,16.24]
[1726813057083,16.24,148.16,148.06,16.24]
[1726813057280,3.3755,148.11,148.06,16.24]
[1726813057690,16.24,148.16,148.07,3.3762]
[1726813058394,16.24,148.16,148.06,16.24]
[1726813059893,3.3761,148.08,148.06,16.24]
[1726813061189,3.3761,148.08,148.05,3.3766]
[1726813061386,3.30508209,148.13,148.03,2.6405]
[1726813061592,16.24,148.1,148.03,2.6405]
[1726813061893,3.39764431,148.09,148.03,2.6405]
[1726813062287,3.3762,148.08,148.03,2.6405]
[1726813062492,3.39764431,148.09,148.03,2.6405]
[1726813062992,3.3769,148.04,148.03,2.6405]
[1726813064799,16.24,148.12,148.03,18.8805]
[1726813065200,3.3764,148.07,148.03,22.2575]
[1726813065401,3.32219295,148.1,148.03,22.2575]
[1726813065598,16.24,148.12,148.03,22.2575]
[1726813066299,19.5415834,148.12,148.03,22.2575]
[1726813066500,3.3766,148.06,148.03,18.8805]
[1726813069701,3.3767,148.05,148.03,18.8805]
[1726813070397,3.3765,148.06,148.03,18.8805]
[1726813072707,3.3763,148.07,148.05,16.24]
[1726813072897,22.9888,148.16,148.06,16.24]
[1726813073400,3.3759,148.09,148.06,19.6164]
[1726813073606,3.43413651,148.13,148.06,16.24]
[1726813073795,22.9888,148.16,148.06,16.24]
[1726813074903,3.3758,148.09,148.06,19.6163]
[1726813076003,3.3758,148.09,148.06,3.3763]
[1726813076205,3.3758,148.09,148.06,19.6163]
[1726813077104,3.3758,148.09,148.06,16.24]
[1726813080901,16.24,148.16,148.06,16.24]
[1726813081107,16.24,148.18,148.08,16.24]
[1726813081301,16.24,148.2,148.1,16.24]
[1726813081504,3.3749,148.13,148.1,19.6154]
[1726813082301,3.3746,148.14,148.1,16.24]
[1726813082606,3.38660548,148.21,148.12,16.24]
[1726813082905,3.3742,148.16,148.14,16.24]
[1726813084305,3.374,148.17,148.14,16.24]
[1726813085412,3.3742,148.16,148.14,16.24]
[1726813086805,3.374,148.17,148.14,16.24]
[1726813088110,3.3742,148.16,148.14,16.24]
[1726813088901,3.3744,148.15,148.14,16.24]
[1726813089107,3.38398085,148.21,148.14,16.24]
[1726813089306,16.24,148.2,148.12,16.24]
[1726813089502,3.3746,148.15,148.12,16.24]
[1726813089709,3.29743479,148.19,148.12,16.24]
[1726813090109,3.3745,148.15,148.12,16.24]
[1726813090809,3.3747,148.14,148.11,19.6151]
[1726813091808,3.3745,148.15,148.11,19.6151]
[1726813092712,3.3747,148.14,148.11,19.6151]
[1726813093115,3.3747,148.14,148.09,2.7323]
[1726813093116,115.88075271,148.22,148.13,16.24]
[1726813093317,3.40649392,148.21,148.13,16.24]
[1726813093920,3.3741,148.17,148.13,19.6147]
[1726813094520,3.3741,148.17,148.11,3.31971932]
[1726813094521,3.3738,148.18,148.15,16.24]